bitfinex/quotes_SOLUSD_20250131
["timestamp","ask_amount","ask_price","bid_price","bid_amount"]
[1738282685014,13.41184853,237.44,237.41,0.063]
[1738282685317,13.41184853,237.42,237.41,0.063]
[1738282685478,13.54863354,237.46,237.41,0.063]
[1738282685686,0.063,237.51,237.41,4.275]
[1738282685991,20.0,237.49,237.41,4.275]
[1738282689317,13.41184853,237.48,237.41,0.063]
[1738282689612,20.0,237.45,237.41,0.063]
[1738282691591,20.0,237.44,237.41,0.063]
[1738282693712,20.0,237.38,237.3,0.03]
[1738282693919,12.75870164,237.34,237.3,0.03]
[1738282694287,12.75870164,237.36,237.3,0.03]
[1738282694488,13.41184853,237.37,237.3,0.03]
[1738282696718,37.76136307,237.38,237.3,0.03]
[1738282696901,6.2255,237.41,237.3,0.03]
[1738282697106,20.0,237.38,237.3,0.03]
[1738282697303,16.97040164,237.44,237.3,0.03]
[1738282697495,6.0175,237.48,237.33,1.6563]
[1738282697695,10.2284,237.48,237.33,1.6563]
[1738282697893,20.0,237.44,237.33,1.6563]
[1738282698302,6.0175,237.48,237.34,14.7467]
[1738282698501,14.28250164,237.5,237.34,14.7467]
[1738282698828,13.41184853,237.49,237.34,151.7467]
[1738282698996,20.0,237.47,237.34,151.7467]
[1738282699320,14.28250164,237.5,237.34,151.7467]
[1738282699521,14.28250164,237.5,237.38,4.2126]
[1738282700200,12.75870164,237.5,237.38,4.2126]
[1738282700398,12.75870164,237.46,237.36,4.2128]
[1738282700600,32.75870164,237.46,237.36,4.2128]
[1738282700801,20.0,237.45,237.36,4.2128]
[1738282701002,20.0,237.45,237.34,4.2132]
[1738282701199,20.0,237.43,237.34,4.2132]
[1738282701392,26.96038307,237.44,237.34,4.2132]
[1738282701724,30.38215017,237.44,237.34,4.2132]
[1738282702021,20.0,237.43,237.34,4.2132]
[1738282704417,26.17055017,237.42,237.33,1.6563]
[1738282704606,26.17055017,237.42,237.33,5.8697]
[1738282705822,12.75870164,237.4,237.31,4.2138]
[1738282706017,12.75870164,237.38,237.31,4.2138]
[1738282707410,16.97100164,237.4,237.3,0.03]
[1738282709107,17.62414853,237.4,237.3,0.03]
[1738282709308,12.75870164,237.44,237.3,0.03]
[1738282709816,13.75870164,237.48,237.3,137.03]
[1738282710025,12.75870164,237.48,237.3,137.03]
[1738282710408,20.0,237.45,237.31,13.41184853]
[1738282711114,16.96960164,237.48,237.35,20.0]
[1738282711313,0.03,237.5,237.4,20.0]
[1738282711514,0.03,237.5,237.4,23.02]
[1738282711953,0.03,237.5,237.4,160.02]
[1738282713018,0.03,237.5,237.41,4.2121]
[1738282716735,0.03,237.5,237.41,141.2121]
[1738282717227,0.03,237.5,237.44,20.0]
[1738282717610,0.03,237.5,237.44,157.0]
[1738282717831,0.03,237.5,237.45,1.5153]
[1738282718018,0.03,237.5,237.45,138.5153]
[1738282718735,0.03,237.5,237.46,4.2112]
[1738282720735,12.75870164,237.49,237.43,4.2116]
[1738282723037,12.75870164,237.49,237.4,1.5759]
[1738282723038,12.75870164,237.47,237.4,1.5759]
[1738282723235,12.75870164,237.45,237.37,13.2359]
[1738282723415,12.75870164,237.43,237.35,5.7299]
[1738282723616,13.54841582,237.48,237.32,6.6184]
[1738282723617,12.75870164,237.39,237.32,6.6184]
[1738282723811,12.75870164,237.37,237.3,0.03]
[1738282724024,12.75870164,237.37,237.3,4.244]
[1738282724621,12.75870164,237.39,237.3,4.244]
[1738282725741,12.75870164,237.43,237.4,0.063]
[1738282725915,12.75870164,237.45,237.4,0.063]
[1738282726111,1.0,237.48,237.4,0.063]
[1738282726112,12.75870164,237.47,237.4,0.063]
[1738282726317,20.0,237.44,237.4,0.063]
[1738282727049,12.75870164,237.41,237.4,0.063]
[1738282727934,26.96050727,237.41,237.4,0.063]
[1738282728140,27.96050727,237.41,237.4,0.063]
[1738282729638,28.96050727,237.41,237.4,0.063]
[1738282730150,27.96050727,237.41,237.4,0.063]
[1738282730325,26.96050727,237.41,237.4,0.063]
[1738282730524,34.64991169,237.41,237.4,0.063]
[1738282730838,13.41184853,237.41,237.4,0.063]
[1738282731438,21.23812486,237.43,237.4,0.063]
[1738282731757,4.2117,237.44,237.4,0.063]
[1738282732042,20.0,237.42,237.4,0.063]
[1738282733956,33.41184853,237.41,237.4,0.063]
[1738282737360,13.41184853,237.41,237.4,0.063]
[1738282738230,20.0,237.41,237.4,0.063]
[1738282738830,20.0,237.42,237.4,0.063]
[1738282739225,20.03,237.44,237.4,0.063]
[1738282739743,0.03,237.44,237.4,0.063]
[1738282740042,0.03,237.44,237.4,4.2751]
[1738282741743,0.03,237.44,237.41,1.5872]
[1738282742048,20.0,237.49,237.41,1.5872]
[1738282742221,0.85264637,237.52,237.41,1.5872]
[1738282742428,0.063,237.52,237.41,138.5872]
[1738282742735,20.0,237.51,237.41,138.5872]
[1738282743132,20.44810606,237.49,237.41,138.5872]
[1738282743523,18.41192775,237.5,237.41,138.5872]
[1738282744448,20.0,237.47,237.41,138.5872]
[1738282744651,20.44810606,237.43,237.4,0.063]
[1738282744847,20.44810606,237.41,237.4,0.063]
[1738282747143,22.23801341,237.47,237.4,0.063]
[1738282747366,21.23801341,237.47,237.4,0.063]
[1738282747536,1.063,237.52,237.4,4.2751]
[1738282747537,24.65850606,237.51,237.4,4.2751]
[1738282747848,0.063,237.52,237.4,4.2751]
[1738282748060,0.063,237.52,237.41,1.5623]
[1738282748230,0.063,237.52,237.42,6.0427]
[1738282748548,0.063,237.52,237.43,13.41184853]
[1738282748758,0.03,237.51,237.46,20.0]
[1738282748944,0.03,237.51,237.46,157.0]
[1738282749734,0.03,237.51,237.47,4.211]
[1738282751341,0.063,237.52,237.51,20.0]
[1738282751655,0.063,237.52,237.51,157.0]
[1738282752634,0.03087935,237.52,237.51,161.2103]
[1738282752851,0.03087935,237.52,237.48,138.6272]
[1738282753230,0.03087935,237.52,237.48,142.838]
[1738282754938,0.03087935,237.52,237.48,1.6272]
[1738282755340,0.03087935,237.52,237.48,5.838]
[1738282758162,0.03087935,237.52,237.48,142.838]
[1738282759361,0.03087935,237.52,237.48,138.6272]
[1738282760568,0.03087935,237.52,237.48,138.6902]
[1738282762465,0.03087935,237.52,237.48,0.063]
[1738282765579,0.03087935,237.52,237.48,141.2738]
[1738282766956,0.03087935,237.52,237.48,0.063]
[1738282768173,4.24097935,237.52,237.48,0.063]
[1738282769185,0.03087935,237.52,237.48,0.063]
[1738282769664,0.03087935,237.52,237.48,4.2737]
[1738282769872,0.03087935,237.52,237.48,0.063]
[1738282771461,0.03087935,237.52,237.48,4.2738]
[1738282772070,0.03087935,237.52,237.48,0.063]
[1738282772448,12.79638884,237.52,237.48,0.063]
[1738282774172,0.03087935,237.52,237.48,0.063]
[1738282774566,0.03087935,237.52,237.48,4.2737]
[1738282775083,0.03087935,237.52,237.48,0.063]
[1738282775381,0.03087935,237.52,237.48,4.2738]
[1738282776153,0.03087935,237.52,237.48,141.2738]
[1738282778582,0.03087935,237.52,237.51,20.0]
[1738282779377,0.03087935,237.52,237.51,157.0]
[1738282780649,0.03087935,237.52,237.51,161.2103]
[1738282781576,0.063,237.64,237.56,20.0]
[1738282781782,0.063,237.64,237.57,16.35184853]
[1738282781965,0.063,237.64,237.57,153.35184853]
[1738282782168,0.063,237.64,237.6,20.0]
[1738282782568,0.063,237.64,237.61,4.2085]
[1738282782879,0.063,237.64,237.61,141.2085]
[1738282783082,0.063,237.64,237.63,20.0]
[1738282783286,0.063,237.64,237.63,157.0]
[1738282783659,0.063,237.64,237.63,158.5548]
[1738282784069,0.063,237.65,237.63,171.96664853]
[1738282784481,0.0001,237.65,237.63,171.96664853]
[1738282784874,0.0001,237.65,237.64,4.208]
[1738282785262,0.0001,237.65,237.64,154.74533853]
[1738282785481,0.063,237.69,237.64,154.74533853]
[1738282785482,0.0001,237.69,237.68,20.0]
[1738282785682,0.0001,237.69,237.68,157.0]
[1738282785988,0.0001,237.69,237.68,170.41184853]
[1738282786165,0.0001,237.69,237.68,170.53733853]
[1738282786361,0.0001,237.69,237.68,170.41184853]
[1738282786565,0.0001,237.69,237.68,20.0]
[1738282786961,0.0001,237.69,237.68,24.2073]
[1738282788688,0.0001,237.69,237.66,4.2076]
[1738282789187,0.0001,237.69,237.66,7.1276]
[1738282789488,0.0001,237.69,237.65,137.0]
[1738282790288,0.0001,237.69,237.65,141.2077]
[1738282791577,0.0001,237.69,237.65,4.2077]
[1738282794574,0.0001,237.69,237.63,137.0]
[1738282794781,0.0001,237.69,237.63,4.2081]
[1738282794988,20.38413001,237.69,237.61,4.2084]
[1738282795176,20.38413001,237.69,237.6,2.92]
[1738282795793,20.38413001,237.69,237.59,4.2087]
[1738282795996,21.17316332,237.69,237.59,4.2087]
[1738282796887,25.38036332,237.69,237.59,4.2087]
[1738282797295,25.38036332,237.69,237.65,0.063]
[1738282797799,20.38403001,237.67,237.65,0.063]
[1738282797993,14.20102463,237.66,237.65,0.063]
[1738282800170,18.40862463,237.66,237.65,0.063]
[1738282800368,17.61944853,237.66,237.65,0.063]
[1738282800573,18.61944853,237.66,237.65,0.063]
[1738282800789,17.61944853,237.66,237.65,0.063]
[1738282803292,17.61944853,237.66,237.51,4.2103]
[1738282803293,20.0,237.59,237.5,137.0]
[1738282803494,13.41184853,237.58,237.49,144.1306]
[1738282803795,20.38403001,237.57,237.49,137.0]
[1738282804194,25.38289129,237.57,237.49,137.0]
[1738282805279,13.41184853,237.56,237.49,137.0]
[1738282805499,13.41184853,237.54,237.48,0.063]
[1738282805886,20.0,237.54,237.48,0.063]
[1738282806291,20.0,237.54,237.48,4.2738]
[1738282806898,20.0,237.54,237.48,0.063]
[1738282808687,13.41184853,237.53,237.48,0.063]
[1738282808889,14.20137135,237.53,237.48,0.063]
[1738282809092,13.41184853,237.51,237.49,0.063]
[1738282809284,14.20150657,237.51,237.49,0.063]
[1738282809485,18.41180657,237.51,237.49,0.063]
[1738282809690,32.76317998,237.54,237.49,0.063]
[1738282810086,12.76317998,237.57,237.49,0.063]
[1738282810285,13.55258091,237.59,237.49,4.2736]
[1738282810499,20.0,237.56,237.49,4.2736]
[1738282810882,13.41184853,237.58,237.49,4.2736]
[1738282811082,13.41184853,237.56,237.49,4.2736]
[1738282812405,20.0,237.58,237.49,4.2736]
[1738282814498,14.20121756,237.57,237.49,4.2736]
[1738282814698,26.96439754,237.57,237.49,0.063]
[1738282815512,26.96439754,237.57,237.49,4.2736]
[1738282816090,26.96439754,237.57,237.49,0.063]
[1738282816290,26.96439754,237.57,237.49,4.2736]
[1738282816605,26.96439754,237.57,237.49,0.063]
[1738282816794,31.17379754,237.57,237.49,4.2736]
[1738282817205,13.41184853,237.54,237.49,0.063]
[1738282817510,13.55275337,237.53,237.49,0.063]
[1738282817686,13.41184853,237.52,237.49,0.063]
[1738282818301,13.55275946,237.51,237.49,0.063]
[1738282818790,13.41184853,237.5,237.49,0.063]
[1738282819504,12.76317998,237.51,237.49,0.063]
[1738282820687,13.41184853,237.52,237.49,0.063]
[1738282821086,33.41184853,237.5,237.49,0.063]
[1738282821711,34.41184853,237.5,237.49,0.063]
[1738282823695,47.17502851,237.5,237.49,0.063]
[1738282823895,34.41184853,237.5,237.49,0.063]
[1738282825712,13.41184853,237.5,237.49,0.063]
[1738282826321,0.7896802,237.52,237.49,0.063]
[1738282826504,20.0,237.5,237.49,0.063]
[1738282826813,33.41184853,237.5,237.49,0.063]
[1738282827016,13.41184853,237.5,237.49,0.063]
[1738282827212,12.76317998,237.53,237.49,0.063]
[1738282827521,20.0,237.5,237.49,0.063]
[1738282829214,13.41184853,237.5,237.49,0.063]
[1738282830005,13.55288966,237.51,237.49,0.063]
[1738282830204,12.76317998,237.53,237.49,0.063]
[1738282830409,20.0,237.5,237.49,0.063]
[1738282832814,13.55273498,237.53,237.49,0.063]
[1738282833143,21.0617,237.74,237.49,4.2736]
[1738282833144,0.78952283,237.59,237.49,4.2736]
[1738282833318,0.03,237.65,237.49,4.2736]
[1738282833319,0.78932393,237.63,237.49,141.2736]
[1738282833624,13.58250391,237.65,237.49,141.2736]
[1738282833821,0.03,237.65,237.52,20.0]
[1738282834134,0.03,237.65,237.53,14.7348]
[1738282835050,20.0,237.64,237.53,151.7348]
[1738282835412,0.03,237.65,237.56,20.0]
[1738282835738,0.03,237.65,237.57,11.1005]
[1738282836116,0.03,237.65,237.57,148.1005]
[1738282837242,12.79317998,237.65,237.57,145.2005]
[1738282837411,12.76317998,237.63,237.57,145.2005]
[1738282837615,12.76317998,237.63,237.57,8.2005]
[1738282838039,12.79317998,237.65,237.57,8.2005]
[1738282838619,13.41184853,237.63,237.57,8.2005]
[1738282839023,20.40627083,237.62,237.57,8.2005]
[1738282839432,20.40627083,237.64,237.57,8.2005]
[1738282839628,0.03,237.65,237.57,12.4096]
[1738282841321,0.03,237.65,237.57,1.6389]
[1738282841322,20.40627083,237.61,237.57,1.6389]
[1738282841925,21.19558871,237.61,237.57,1.6389]
[1738282842525,40.40627083,237.63,237.57,1.6389]
[1738282842746,20.0,237.63,237.57,1.6389]
[1738282844540,0.03,237.65,237.57,5.848]
[1738282844933,20.0,237.64,237.57,5.848]
[1738282846544,0.03,237.65,237.57,5.848]
[1738282846745,0.03,237.65,237.57,142.848]
[1738282848028,0.03,237.65,237.57,153.3712]
[1738282848738,0.03,237.65,237.6,20.0]
[1738282848922,0.03,237.65,237.61,6.4034]
[1738282849128,0.03,237.65,237.61,143.4034]
[1738282850956,0.03,237.65,237.62,4.2083]
[1738282851136,0.03,237.65,237.63,2.9]
[1738282852959,0.03,237.65,237.64,4.208]
[1738282853145,0.03,237.65,237.64,141.208]
[1738282854949,0.03,237.65,237.64,137.0]
[1738282856359,0.03,237.65,237.63,4.2082]
[1738282857838,0.03,237.65,237.61,6.4034]
[1738282858041,0.03,237.65,237.59,141.2088]
[1738282860671,0.03,237.65,237.59,151.7311]
[1738282861350,0.03,237.65,237.6,30.0]
[1738282861869,0.03,237.65,237.64,20.0]
[1738282862258,0.03,237.65,237.64,157.0]
[1738282862452,0.0001,237.65,237.64,163.2064]
[1738282862658,0.0001,237.65,237.64,167.4144]
[1738282863067,0.0001,237.69,237.64,167.4144]
[1738282863068,0.0001,237.69,237.68,20.0]
[1738282863242,0.0001,237.69,237.68,170.41184853]
[1738282864169,0.0001,237.69,237.68,482.41184853]
[1738282864471,0.0001,237.69,237.68,482.53733853]
[1738282864770,0.0001,237.69,237.68,174.74463853]
[1738282864958,0.03,237.74,237.69,43.41184853]
[1738282865156,0.03,237.74,237.72,20.0]
[1738282865357,0.03,237.74,237.72,157.0]
[1738282865766,0.03,237.74,237.73,13.53733853]
[1738282865972,0.03,237.74,237.73,15.15293853]
[1738282866268,0.063,237.8,237.79,30.12549]
[1738282866459,0.063,237.8,237.79,180.53733853]
[1738282866970,0.03,237.88,237.83,1.6592]
[1738282867170,0.03,237.88,237.84,2.9]
[1738282867668,0.03,237.88,237.84,314.9]
[1738282868871,0.03,237.88,237.85,4.2043]
[1738282871178,0.03,237.88,237.85,141.2043]
[1738282873471,0.03,237.88,237.85,453.2043]
[1738282874876,0.03,237.88,237.85,141.2043]
[1738282875065,0.03,237.88,237.85,144.0843]
[1738282875266,0.03,237.88,237.83,2.88]
[1738282875466,0.03,237.88,237.77,10.5139]
[1738282875467,20.3779547,237.88,237.81,4.2049]
[1738282875774,20.3479547,237.87,237.81,4.2049]
[1738282876282,20.3779547,237.88,237.81,4.2049]
[1738282876598,0.03,237.88,237.81,4.2049]
[1738282877160,20.3479547,237.86,237.78,137.0]
[1738282877372,0.03,237.88,237.78,144.0854]
[1738282877883,20.3479547,237.86,237.78,144.0854]
[1738282878270,20.3779547,237.88,237.78,144.0854]
[1738282879261,20.03,237.88,237.78,144.0854]
[1738282881273,44.5817547,237.88,237.78,144.0854]
[1738282881878,20.3479547,237.86,237.78,137.0]
[1738282882081,20.3479547,237.83,237.78,137.0]
[1738282882385,20.3479547,237.85,237.78,137.0]
[1738282882602,24.2338,237.88,237.78,141.2684]
[1738282883193,24.2338,237.88,237.78,4.2684]
[1738282883783,20.3479547,237.83,237.78,0.063]
[1738282884168,20.3479547,237.85,237.78,0.063]
[1738282884371,20.3479547,237.85,237.78,4.2685]
[1738282884985,20.0,237.84,237.78,4.2685]
[1738282885897,34.54826645,237.87,237.78,4.2685]
[1738282886079,38.75216645,237.87,237.78,4.2685]
[1738282888393,20.3479547,237.85,237.78,0.063]
[1738282888602,20.3479547,237.83,237.78,0.063]
[1738282888989,20.3479547,237.85,237.78,0.063]
[1738282889301,17.61584853,237.87,237.78,4.2685]
[1738282889488,38.75229566,237.87,237.78,4.2685]
[1738282889679,20.3479547,237.85,237.78,0.063]
[1738282889875,20.3479547,237.83,237.78,0.063]
[1738282890093,13.41184853,237.82,237.78,0.063]
[1738282890700,26.14703924,237.82,237.78,0.063]
[1738282890904,30.35193924,237.82,237.78,0.063]
[1738282891388,12.73519071,237.8,237.78,0.063]
[1738282891797,14.20045567,237.79,237.78,0.063]
[1738282892900,14.20045567,237.79,237.78,0.0001]
[1738282892901,20.40575567,237.79,237.78,0.0001]
[1738282893281,18.40575567,237.79,237.78,0.0001]
[1738282902888,19.40575567,237.79,237.78,0.0001]
[1738282903095,20.40575567,237.79,237.78,0.0001]
[1738282904206,20.40575567,237.79,237.62,6.4206]
[1738282904207,1.0,237.76,237.62,10.6288]
[1738282904392,13.41184853,237.68,237.62,10.6288]
[1738282904799,13.52425072,237.67,237.6,5.8835]
[1738282905001,13.41184853,237.66,237.6,5.8835]
[1738282905205,12.73519071,237.65,237.6,1.6749]
[1738282905827,14.20094381,237.66,237.6,5.8836]
[1738282906998,12.73519071,237.67,237.6,4.2717]
[1738282907712,14.20095949,237.66,237.6,4.2717]
[1738282908011,12.73519071,237.63,237.6,0.063]
[1738282908216,13.41184853,237.62,237.6,0.063]
[1738282909815,26.93631045,237.61,237.6,0.063]
[1738282910389,40.67150116,237.61,237.6,0.063]
[1738282914316,27.93631045,237.61,237.6,0.063]
[1738282914821,26.93631045,237.61,237.6,0.063]
[1738282915314,39.67150116,237.61,237.6,0.063]
[1738282915897,45.44550116,237.61,237.6,0.063]
[1738282916117,32.71031045,237.61,237.6,0.063]
[1738282916822,26.93631045,237.61,237.6,0.063]
[1738282917112,13.41184853,237.61,237.6,0.063]
[1738282917415,20.0,237.62,237.6,0.063]
[1738282917610,20.78923251,237.62,237.6,0.063]
[1738282917832,12.73519071,237.67,237.6,4.2716]
[1738282918116,0.78914156,237.66,237.6,4.2716]
[1738282918317,13.41184853,237.65,237.6,4.2716]
[1738282918510,26.14703924,237.63,237.6,0.063]
[1738282918708,0.78928398,237.62,237.6,0.063]
[1738282919504,26.93633499,237.63,237.6,0.063]
[1738282919916,26.14703924,237.63,237.6,0.063]
[1738282920637,20.0,237.62,237.6,4.2716]
[1738282921116,20.0,237.62,237.6,0.063]
[1738282923036,12.73519071,237.67,237.6,4.2717]
[1738282923200,13.52426771,237.69,237.6,5.9292]
[1738282923513,20.0,237.65,237.6,5.9292]
[1738282923728,12.73519071,237.63,237.6,1.7205]
[1738282924610,32.73519071,237.65,237.6,1.7205]
[1738282924808,12.73519071,237.65,237.6,1.7205]
[1738282925013,20.0,237.68,237.6,5.9291]
[1738282925396,18.78719071,237.71,237.6,5.9291]
[1738282925599,12.73519071,237.71,237.6,5.9291]
[1738282925827,12.73519071,237.71,237.6,142.9291]
[1738282926123,20.0,237.72,237.6,142.9291]
[1738282926340,0.03,237.78,237.63,20.0]
[1738282926497,0.03,237.78,237.64,7.8432]
[1738282926701,0.03,237.78,237.68,4.2073]
[1738282926917,12.73519071,237.73,237.68,137.0]
[1738282927102,12.73519071,237.73,237.67,2.86]
[1738282927103,12.73519071,237.71,237.67,2.86]
[1738282927309,12.73519071,237.69,237.64,1.5156]
[1738282927502,12.73519071,237.67,237.64,1.5156]
[1738282929034,12.73519071,237.69,237.64,1.5156]
[1738282929205,12.73519071,237.77,237.64,142.7236]
[1738282929405,12.73519071,237.77,237.64,153.2437]
[1738282929612,26.14703924,237.77,237.64,153.2437]
[1738282930919,26.14703924,237.77,237.64,142.7236]
[1738282930920,12.73519071,237.75,237.64,142.7236]
[1738282931228,0.78887736,237.74,237.64,142.7236]
[1738282932207,12.73519071,237.69,237.64,1.5156]
[1738282932407,12.73519071,237.67,237.64,1.5156]
[1738282932632,12.73519071,237.65,237.6,2.923]
[1738282932809,12.73519071,237.63,237.6,2.923]
[1738282933715,12.73519071,237.63,237.6,0.063]
[1738282934609,46.14703924,237.61,237.6,0.063]
[1738282935010,58.88222995,237.61,237.6,0.063]
[1738282935938,63.09072995,237.61,237.6,0.063]
[1738282936248,20.0,237.58,237.57,0.063]
[1738282936549,54.63051896,237.58,237.57,0.063]
[1738282937741,58.83961896,237.58,237.57,0.063]
[1738282943622,54.63051896,237.58,237.57,0.063]
[1738282945619,53.84089787,237.58,237.57,0.063]
[1738282945838,20.45904934,237.6,237.57,0.063]
[1738282946139,0.03,237.6,237.57,0.063]
[1738282946439,0.03,237.6,237.57,4.2722]
[1738282947158,20.03,237.6,237.57,0.063]
[1738282947455,0.03,237.6,237.58,1.5645]
[1738282951052,0.03,237.6,237.58,5.7735]
[1738282952134,0.03,237.6,237.58,142.7735]
[1738282952319,0.03,237.6,237.58,5.7735]
[1738282952525,20.42904934,237.72,237.58,16.2962]
[1738282952844,20.42904934,237.72,237.58,153.2962]
[1738282953028,4.2066,237.73,237.58,153.2962]
[1738282953228,20.0,237.71,237.58,153.2962]
[1738282953943,20.0,237.69,237.58,153.2962]
[1738282954749,13.41184853,237.74,237.61,20.0]
[1738282954750,24.63534934,237.74,237.61,20.0]
[1738282954926,20.42904934,237.72,237.62,6.3362]
[1738282955326,4.2063,237.74,237.62,6.3362]
[1738282955327,24.63534934,237.74,237.62,6.3362]
[1738282955745,20.0,237.73,237.63,1.5645]
[1738282955948,20.0,237.73,237.64,4.208]
[1738282956248,20.0,237.73,237.65,2.86]
[1738282956448,0.03,237.74,237.65,139.86]
[1738282956747,0.03,237.74,237.68,20.0]
[1738282956950,0.03,237.74,237.69,1.6236]
[1738282958054,0.03,237.74,237.7,4.2069]
[1738282959550,0.03,237.74,237.69,1.6236]
[1738282959748,0.03,237.74,237.69,5.8307]
[1738282960333,0.03,237.74,237.69,142.8307]
[1738282960533,0.03,237.74,237.72,20.0]
[1738282960739,0.03,237.74,237.73,6.5056]
[1738282960939,0.03,237.74,237.73,143.5056]
[1738282961758,0.03,237.74,237.73,147.712]
[1738282963234,0.03,237.74,237.73,143.5056]
[1738282965129,0.03,237.74,237.69,1.6236]
[1738282965349,0.03,237.74,237.69,8.6906]
[1738282967840,0.03,237.74,237.69,5.8306]
[1738282968049,12.76730689,237.74,237.69,1.6236]
[1738282969339,20.0,237.75,237.69,1.6236]
[1738282969638,32.73730689,237.75,237.69,1.6236]
[1738282972362,36.94340689,237.75,237.66,4.2075]
[1738282972544,36.94340689,237.75,237.63,1.6377]
[1738282972545,32.73730689,237.73,237.63,138.6377]
[1738282972750,32.73730689,237.73,237.64,7.0679]
[1738282973435,20.0,237.73,237.64,7.0679]
[1738282976389,33.52621119,237.73,237.64,7.0679]
[1738282976700,37.73261119,237.73,237.64,7.0679]
[1738282977051,37.73261119,237.73,237.64,4.2079]
[1738282977262,36.94370689,237.73,237.64,4.2079]
[1738282977880,32.73730689,237.73,237.64,4.2079]
[1738282978097,17.73241978,237.75,237.64,4.2079]
[1738282978303,0.03,237.78,237.65,20.0]
[1738282978765,12.73730689,237.76,237.64,14.728]
[1738282979079,12.73730689,237.72,237.64,4.2079]
[1738282980301,12.73730689,237.68,237.61,2.86]
[1738282980471,12.73730689,237.68,237.61,7.0685]
[1738282980667,12.73730689,237.68,237.61,4.2085]
[1738282980904,26.14915542,237.7,237.61,4.2085]
[1738282981304,12.73730689,237.66,237.6,0.063]
[1738282981615,13.52646803,237.66,237.6,0.063]
[1738282982695,12.73730689,237.66,237.6,0.063]
[1738282982901,0.789145,237.71,237.6,4.2716]
[1738282983275,20.0,237.69,237.6,4.2716]
[1738282983883,20.78903928,237.69,237.6,4.2716]
[1738282984896,26.14915542,237.68,237.6,4.2716]
[1738282986675,12.73730689,237.68,237.6,4.2716]
[1738282986882,12.73730689,237.7,237.6,4.2716]
[1738282987197,13.41184853,237.71,237.6,4.2716]
[1738282988312,13.41184853,237.69,237.6,4.2716]
[1738282988898,12.73730689,237.66,237.6,0.063]
[1738282989208,12.73730689,237.64,237.6,0.063]
[1738282989505,0.78923147,237.63,237.6,0.063]
[1738282989689,13.52653484,237.64,237.6,0.063]
[1738282990091,12.73730689,237.64,237.6,0.063]
[1738282991005,26.9383181,237.66,237.6,0.063]
[1738282991975,13.52646957,237.66,237.6,0.063]
[1738282992182,12.73730689,237.68,237.6,4.2717]
[1738282992403,0.78907992,237.67,237.6,4.2717]
[1738282993702,12.73730689,237.64,237.6,0.063]
[1738282993893,12.73730689,237.62,237.6,0.063]
[1738282994711,0.78924116,237.63,237.6,0.063]
[1738283001326,20.78912255,237.67,237.61,4.2085]
[1738283001494,13.41184853,237.66,237.61,4.2085]
[1738283001998,20.78912255,237.67,237.61,4.2085]
[1738283002197,20.0,237.67,237.61,4.2085]
[1738283002701,13.52640709,237.68,237.61,4.2085]
[1738283004102,13.41184853,237.67,237.61,4.2085]
[1738283004412,0.7891352,237.66,237.61,4.2085]
[1738283004617,14.20098078,237.67,237.61,4.2085]
[1738283005417,12.73730689,237.72,237.62,1.581]
[1738283005717,0.78898553,237.71,237.62,7.7887]
[1738283006021,0.03,237.74,237.62,145.78868596]
[1738283006330,0.03,237.74,237.66,20.0]
[1738283006510,0.03,237.74,237.66,22.86]
[1738283007711,0.03,237.74,237.67,1.6536]